bitfinex-derivatives/quotes_ETHF0:USTF0_20250213
["timestamp","ask_amount","ask_price","bid_price","bid_amount"]
[1739459697418,0.76316687,2640.2,2639.7,0.00566994]
[1739459697622,0.76316687,2640.2,2640.1,3.2078]
[1739459698120,0.00567687,2640.2,2640.1,3.96531]
[1739459698417,0.76315687,2640.2,2640.1,3.96531]
[1739459698616,0.76315687,2640.2,2640.1,3.2078]
[1739459699413,0.76315687,2640.2,2640.1,3.20335773]
[1739459700019,2.028,2640.9,2640.1,7.90058674]
[1739459700221,0.75733,2640.7,2640.6,3.2078]
[1739459700419,2.028,2641.2,2640.7,0.75732]
[1739459700619,3.93971901,2642.1,2640.9,3.2078]
[1739459700817,0.579,2642.0,2641.5,3.2078]
[1739459701120,0.75708,2641.6,2641.5,3.2078]
[1739459701315,0.58467687,2642.0,2641.5,3.21347687]
[1739459701521,0.75708,2641.6,2641.5,3.21347687]
[1739459701719,0.58467687,2642.0,2641.5,3.21347687]
[1739459701920,0.75699,2641.9,2641.8,3.2078]
[1739459702425,0.75708,2641.6,2641.5,3.21347687]
[1739459702828,0.75708,2641.6,2641.5,0.00567687]
[1739459703323,0.00567687,2642.0,2641.9,0.75699]
[1739459703521,0.75682,2642.6,2641.9,3.2078]
[1739459703824,0.01374,2643.0,2642.5,3.2078]
[1739459704025,0.75673,2642.8,2642.5,3.2078]
[1739459704225,0.75675,2642.8,2642.5,3.2078]
[1739459704422,0.01374,2643.0,2642.5,3.2078]
[1739459704622,0.75679,2642.6,2642.5,3.2078]
[1739459705525,0.00567687,2642.9,2642.1,3.2078]
[1739459705727,0.75684,2642.5,2642.4,3.2078]
[1739459706320,3.92445687,2642.9,2642.1,3.2078]
[1739459706525,0.75682,2642.5,2642.4,3.2078]
[1739459707019,2.03267687,2642.9,2642.4,3.96462]
[1739459707020,0.75676,2642.8,2642.4,3.96462]
[1739459707223,2.03267687,2642.9,2642.4,3.2078]
[1739459707422,0.75681,2642.6,2642.4,3.2078]
[1739459707619,2.03267687,2642.9,2642.4,3.2078]
[1739459707620,0.75682,2642.5,2642.4,3.2078]
[1739459707934,0.00567687,2642.9,2642.4,3.2078]
[1739459708126,0.76237687,2642.9,2642.8,3.2078]
[1739459709230,0.00567687,2642.9,2642.4,3.2078]
[1739459709436,0.75682,2642.5,2642.4,3.2078]
[1739459709731,0.00567687,2642.9,2642.4,3.2078]
[1739459709931,0.00567687,2642.9,2642.2,0.5501]
[1739459709932,0.00567687,2642.9,2642.8,3.2078]
[1739459710126,0.76237687,2642.9,2642.8,3.2078]
[1739459710824,0.00567687,2642.9,2642.8,3.2078]
[1739459711029,0.00567687,2642.9,2642.8,3.96453]
[1739459711224,0.00567687,2642.9,2642.8,3.2078]
[1739459711439,0.76237687,2642.9,2642.8,3.2078]
[1739459711642,0.00567687,2642.9,2642.8,3.2078]
[1739459711934,0.00567687,2642.9,2642.8,3.96453]
[1739459712729,0.28481369,2643.3,2642.8,3.96453]
[1739459712730,0.28481369,2643.3,2642.8,3.2078]
[1739459712929,0.5498,2643.9,2643.2,3.2078]
[1739459713139,0.75656,2643.4,2643.3,0.75657]
[1739459713328,0.28870205,2643.9,2643.4,0.75655]
[1739459713533,3.2078,2644.3,2643.6,3.2078]
[1739459713733,0.75639,2644.0,2643.9,3.2078]
[1739459713947,0.00567687,2644.2,2643.9,3.2078]
[1739459714141,0.75639,2644.0,2643.9,3.2078]
[1739459715132,0.00567687,2644.2,2643.9,3.2078]
[1739459715331,0.76202687,2644.2,2643.9,3.9642]
[1739459715537,0.00567687,2644.2,2643.9,3.2078]
[1739459715739,0.75638,2644.1,2643.9,3.2078]
[1739459715931,0.75636,2644.1,2643.9,3.96421]
[1739459716333,0.75637,2644.1,2643.9,3.96421]
[1739459716533,0.30012049,2644.2,2643.9,3.2078]
[1739459716933,0.75639,2644.0,2643.9,3.2078]
[1739459717135,0.75637,2644.1,2643.9,3.96419]
[1739459717440,0.75639,2644.0,2643.9,3.2078]
[1739459718239,0.30012049,2644.2,2643.9,3.2078]
[1739459718432,0.75639,2644.0,2643.9,3.2078]
[1739459720245,0.75645,2643.8,2643.7,0.00567687]
[1739459721449,0.30012049,2644.2,2643.7,0.00567687]
[1739459721744,0.75638,2644.1,2643.9,3.2078]
[1739459722039,0.75638,2644.1,2643.9,3.96422]
[1739459722245,0.75636,2644.1,2643.9,3.96419]
[1739459722539,0.30012049,2644.2,2643.9,3.2078]
[1739459722743,0.30012049,2644.2,2644.1,0.75636]
[1739459722932,0.30012049,2644.2,2643.9,3.2078]
[1739459723339,0.30012049,2644.2,2644.1,0.75636]
[1739459723536,0.30012049,2644.2,2643.9,3.2078]
[1739459723741,0.30012049,2644.2,2644.1,5.13254563]
[1739459723942,1.89031,2645.0,2644.1,4.37618563]
[1739459724140,3.2078,2645.4,2644.7,3.2078]
[1739459724337,0.5825,2645.5,2644.5,4.37618563]
[1739459724546,0.75607,2645.1,2645.0,3.2078]
[1739459725247,11.2318,2645.1,2644.1,3.2078]
[1739459725546,1.89042,2644.8,2644.1,3.2078]
[1739459725748,1.89042,2644.8,2643.9,0.7564]
[1739459725749,0.75632,2644.3,2644.0,0.75638]
[1739459725944,0.75632,2644.3,2644.2,3.2078]
[1739459726145,1.89026,2645.0,2644.2,3.2078]
[1739459726348,0.75622,2644.6,2644.5,3.2078]
[1739459726847,1.89014,2645.2,2644.5,3.2078]
[1739459727045,0.75622,2644.6,2644.5,3.2078]
[1739459727646,0.7562,2644.7,2644.5,3.2078]
[1739459727847,0.00567687,2645.3,2644.5,3.2078]
[1739459728048,0.75611,2645.0,2644.9,3.2078]
[1739459729744,3.2078,2645.1,2644.3,3.2078]
[1739459729942,0.00567687,2645.3,2644.6,3.2078]
[1739459730148,0.75619,2644.7,2644.6,3.2078]
[1739459730353,0.75627,2644.4,2644.3,3.2078]
[1739459731452,0.75636,2644.1,2644.0,3.2078]
[1739459734356,1.89062,2644.5,2644.0,3.2078]
[1739459734553,2.023,2644.6,2644.0,3.2078]
[1739459734751,0.75636,2644.1,2644.0,3.2078]
[1739459735846,3.2078,2644.7,2644.0,3.2078]
[1739459736050,3.78035,2645.2,2644.0,3.2078]
[1739459736051,0.75627,2644.4,2644.2,4.68385975]
[1739459736250,0.75627,2644.4,2644.3,3.2078]
[1739459736645,0.75623,2644.6,2644.4,0.75626]
[1739459736848,0.75623,2644.6,2644.3,3.2078]
[1739459736849,0.75626,2644.5,2644.3,3.96409]
[1739459737447,1.89033,2644.9,2644.3,3.2078]
[1739459737752,0.75619,2644.7,2644.6,3.2078]
[1739459739357,3.91324,2645.1,2644.6,3.2078]
[1739459739656,2.023,2645.1,2644.6,3.2078]
[1739459740157,0.75618,2644.8,2644.6,3.96402]
[1739459740459,2.023,2645.2,2644.7,0.75619]
[1739459740659,2.023,2645.2,2644.6,3.2078]
[1739459740857,0.75619,2644.7,2644.6,3.2078]
[1739459743159,0.75627,2644.4,2644.3,3.2078]
[1739459745166,2.5817,2644.6,2644.3,3.2078]
[1739459745463,2.77922,2644.6,2644.5,0.75625]
[1739459745658,0.5618,2645.1,2644.3,3.2078]
[1739459745855,0.5618,2645.1,2644.6,3.2078]
[1739459746061,0.75616,2644.8,2644.7,0.75618]
[1739459746265,0.75616,2644.8,2644.6,3.2078]
[1739459746457,0.75616,2644.8,2644.7,0.75619]
[1739459746660,0.5618,2645.1,2644.6,3.964]
[1739459746958,0.7561,2645.0,2644.9,3.2078]
[1739459749767,3.92753975,2646.5,2644.9,7.13533975]
[1739459749969,0.7559,2645.7,2645.6,3.2078]
[1739459750469,1.88941,2646.2,2645.6,3.2078]
[1739459750665,0.7559,2645.7,2645.6,3.2078]
[1739459751065,0.7559,2645.7,2645.6,3.21347687]
[1739459751569,0.00379153,2646.2,2645.6,3.21347687]
[1739459751964,0.00379153,2646.2,2646.1,3.2078]
[1739459752172,1.88864,2647.3,2646.1,7.13533975]
[1739459752371,0.06496511,2647.2,2646.6,3.2078]
[1739459752562,0.75562,2646.7,2646.6,3.2078]
[1739459754868,3.2078,2646.8,2646.3,3.2078]
[1739459755075,0.7557,2646.4,2646.3,3.2078]
[1739459755567,1.88862,2647.3,2646.3,9.2078]
[1739459755774,0.75556,2646.9,2646.8,3.2078]
[1739459755973,1.88843,2647.6,2646.8,3.2078]
[1739459755974,2.021,2647.6,2646.8,3.2078]
[1739459756173,3.7712,2647.7,2647.1,7.13533975]
[1739459756174,0.75542,2647.4,2647.1,7.13533975]
[1739459756472,3.7712,2647.7,2647.1,7.68053975]
[1739459756473,0.75545,2647.3,2647.1,7.68053975]
[1739459756866,3.2078,2647.7,2647.1,7.68053975]
[1739459757068,2.5689,2648.6,2647.4,7.13533975]
[1739459757267,3.2078,2648.2,2647.4,7.13533975]
[1739459757677,0.75533,2647.8,2647.7,3.2078]
[1739459757879,3.2078,2648.5,2647.7,3.2078]
[1739459758177,3.2078,2648.5,2647.7,7.89065975]
[1739459758371,0.75527,2647.9,2647.8,0.5956]
[1739459759677,0.7553,2647.8,2647.7,7.13533975]
[1739459759870,1.88798,2648.2,2647.4,7.73533975]
[1739459759871,3.2078,2648.2,2647.4,7.73533975]
[1739459760072,0.75539,2647.5,2647.4,7.73533975]
[1739459760275,1.88795,2648.3,2647.4,7.73533975]
[1739459760470,3.2078,2648.5,2647.7,3.2078]
[1739459760674,3.2078,2648.5,2647.7,7.13533975]
[1739459760879,0.7553,2647.8,2647.7,3.2078]
[1739459761177,0.75539,2647.5,2647.4,3.2078]
[1739459762572,2.02,2648.3,2647.4,7.13533975]
[1739459762875,0.75539,2647.5,2647.4,3.2078]
[1739459763673,0.5442,2647.8,2647.4,3.2078]
[1739459763876,0.75539,2647.5,2647.4,3.2078]
[1739459764677,3.2078,2647.7,2647.1,3.753]
[1739459764881,0.75547,2647.2,2647.1,0.5452]
[1739459765481,0.75553,2647.0,2646.9,0.00567687]
[1739459767479,2.02,2647.3,2646.9,0.00567687]
[1739459767680,2.02,2647.3,2646.9,0.58587687]
[1739459767878,1.88832,2647.8,2646.9,3.79367687]
[1739459768081,1.88832,2647.8,2647.2,3.2078]
[1739459768082,2.02,2647.7,2647.2,3.2078]
[1739459768275,2.49094,2647.9,2647.2,3.2078]
[1739459768578,0.75535,2647.7,2647.5,3.2078]
[1739459768773,3.2078,2648.5,2647.5,3.2078]
[1739459769082,3.2078,2648.5,2647.8,3.2078]
[1739459769283,3.90772,2648.6,2647.9,0.5716]
[1739459769484,0.75525,2648.0,2647.9,0.5716]
[1739459770371,1.88743,2649.0,2647.9,2.5916]
[1739459770571,3.2078,2649.1,2648.5,3.2078]
[1739459770772,0.75507,2648.6,2648.5,3.2078]
[1739459770978,3.2078,2650.1,2648.5,11.2278]
[1739459771173,0.75487,2649.3,2649.2,3.2078]
[1739459771481,0.75493,2649.1,2649.0,3.92753975]
[1739459771678,9.15533975,2650.2,2649.0,3.92753975]
[1739459771878,0.06487292,2650.1,2649.5,3.2078]
[1739459772078,0.75479,2649.6,2649.5,3.2078]
[1739459772577,0.75473,2649.9,2649.5,3.2078]
[1739459772779,0.75479,2649.6,2649.5,3.2078]
[1739459772984,3.2078,2650.2,2649.5,3.2078]
[1739459773386,3.2078,2650.2,2649.3,3.92753975]
[1739459773584,3.2078,2650.2,2649.0,2.019]
[1739459773585,0.06483223,2650.1,2649.5,3.2078]
[1739459773777,3.2078,2650.2,2649.5,3.2078]
[1739459773994,3.2078,2650.5,2649.8,3.2078]
[1739459774186,0.06483412,2650.4,2649.8,3.2078]
[1739459774395,3.2078,2650.8,2650.1,3.2078]
[1739459774695,3.8068,2651.6,2650.4,3.2078]
[1739459774894,0.75437,2651.1,2651.0,3.2078]
[1739459775089,3.2078,2651.6,2651.0,3.2078]
[1739459775289,0.75433,2651.2,2651.1,3.2078]
[1739459775494,11.09366,2651.2,2650.0,3.2078]
[1739459775796,0.06487659,2651.1,2650.0,3.2078]
[1739459775991,3.27267659,2651.1,2650.3,3.2078]
[1739459776196,5.2268,2651.4,2650.6,3.2078]
[1739459776397,0.75448,2650.7,2650.6,3.2078]
[1739459776602,3.2078,2651.3,2650.6,3.19900774]
[1739459776795,0.75456,2650.4,2650.3,0.00566594]
[1739459777295,3.2078,2651.3,2650.3,0.00566594]
[1739459777600,3.2078,2651.4,2650.7,3.2078]
[1739459777798,3.2078,2651.7,2650.9,7.80265319]
[1739459777995,0.75431,2651.3,2651.2,3.2078]
[1739459778200,2.018,2652.0,2651.2,3.2078]
[1739459778395,0.75431,2651.3,2651.2,3.2078]
[1739459778703,5.2258,2651.5,2650.5,3.2078]
[1739459778889,1.88557,2651.6,2650.5,3.2078]
[1739459779095,1.88577,2651.3,2650.5,3.2078]
[1739459779299,0.5481,2651.5,2650.5,3.2078]
[1739459779495,3.2078,2651.1,2650.5,7.80265319]
[1739459779696,3.2078,2651.7,2650.6,3.2078]
[1739459780003,0.75439,2651.0,2650.9,3.2078]
[1739459780300,0.75448,2650.7,2650.6,3.2078]
[1739459781091,5.2248,2651.4,2650.6,3.2078]
[1739459781299,3.2078,2651.4,2650.6,3.2078]
[1739459781600,3.2078,2651.1,2650.6,3.2078]
[1739459781805,0.75448,2650.7,2650.6,3.2078]
[1739459782202,0.5592,2651.0,2650.3,3.21346594]
[1739459782405,0.75453,2650.5,2650.3,3.21346594]
[1739459782604,1.1259,2651.0,2650.3,3.21346594]
[1739459782805,0.75443,2650.9,2650.7,3.2078]
[1739459783100,3.2078,2651.1,2650.7,3.2078]
[1739459783101,0.75442,2651.0,2650.7,3.2078]
[1739459783303,3.2078,2651.4,2650.7,3.2078]
[1739459783502,0.75443,2650.9,2650.7,3.2078]
[1739459783709,3.2078,2651.4,2650.7,3.2078]
[1739459784008,0.75445,2650.8,2650.7,3.2078]
[1739459784503,0.75453,2650.5,2650.4,3.2078]
[1739459784702,2.021,2650.9,2650.4,3.2078]
[1739459784902,0.75453,2650.5,2650.4,3.2078]
[1739459785110,0.75452,2650.6,2650.4,3.2078]
[1739459785304,2.021,2650.9,2650.4,3.2078]
[1739459785495,3.2078,2651.4,2650.7,3.2078]
[1739459785701,5.2308,2651.7,2650.7,3.2078]
[1739459785900,0.75438,2651.1,2650.7,3.96226]
[1739459786096,1.88558,2651.6,2650.8,0.75445]
[1739459786408,0.75435,2651.2,2651.0,3.2078]
[1739459786612,5.2308,2651.7,2651.0,3.2078]
[1739459786905,3.2078,2651.7,2651.0,3.2078]
[1739459787103,0.75434,2651.2,2651.0,3.2078]
[1739459787310,1.88556,2651.6,2651.0,3.2078]
[1739459787608,0.75436,2651.1,2651.0,3.2078]
[1739459788311,0.75432,2651.3,2651.0,3.2078]
[1739459788507,0.5667,2651.8,2651.0,3.2078]
[1739459788805,0.5667,2651.8,2651.7,3.2078]
[1739459789007,1.32086,2651.8,2651.7,3.2078]
[1739459789211,0.75427,2651.5,2651.4,3.2078]
[1739459789408,5.65993,2651.8,2651.1,3.2078]
[1739459789608,3.7745,2651.8,2651.1,3.2078]
[1739459789802,0.5667,2651.8,2651.1,3.2078]
[1739459790009,0.5667,2651.8,2651.4,3.2078]
[1739459790511,0.75425,2651.5,2651.4,3.2078]
[1739459790707,0.6017,2652.1,2651.4,3.2078]
[1739459790911,0.75411,2652.0,2651.9,3.2078]
[1739459791409,0.7541,2652.1,2651.9,3.2078]
[1739459791608,3.2078,2652.4,2651.9,3.2078]
[1739459791807,0.75411,2652.0,2651.9,3.2078]
[1739459793010,2.017,2652.5,2651.9,3.2078]
[1739459793216,2.6122,2652.6,2652.2,3.2078]
[1739459793411,0.75402,2652.3,2652.2,3.2078]
[1739459793714,1.88465,2652.9,2652.2,3.2078]
[1739459793906,0.75398,2652.5,2652.4,3.90375456]
[1739459794107,2.18194078,2653.4,2652.4,3.90375456]
[1739459794407,0.75382,2653.0,2652.9,3.2078]
[1739459795014,5.2238,2653.4,2652.9,3.2078]
[1739459795213,3.2078,2654.0,2653.3,3.90375456]
[1739459795407,0.75362,2653.7,2653.6,3.90375456]
[1739459795604,3.2078,2654.0,2653.2,3.2078]
[1739459795913,3.2078,2653.6,2652.7,3.2078]
[1739459796108,0.75371,2653.4,2653.3,0.00565515]
[1739459797107,3.96151,2653.4,2653.3,0.00565515]
[1739459797508,3.96151,2653.4,2653.3,5.15e-06]
[1739459797509,10.02635196,2653.4,2653.3,5.15e-06]
[1739459797711,0.75405,2652.2,2652.1,3.2078]
[1739459798220,0.75416,2651.8,2651.7,3.2078]
[1739459798515,0.75415,2651.9,2651.7,3.2078]
[1739459798707,0.75411,2652.0,2651.7,3.2078]
[1739459798913,0.75969274,2652.0,2651.7,3.2078]
[1739459799113,0.00558274,2652.0,2651.7,3.2078]
[1739459799313,0.00558274,2652.0,2651.5,4.58588034]
[1739459799509,0.75416,2651.8,2651.7,3.2078]
[1739459799916,0.75422,2651.6,2651.5,0.00565515]
[1739459801715,0.75422,2651.6,2651.5,5.15e-06]
[1739459802613,0.81906478,2651.6,2651.5,5.15e-06]
[1739459803315,0.75422,2651.6,2651.5,5.15e-06]
[1739459803710,3.96202,2651.6,2651.5,5.15e-06]
[1739459803914,12.04290712,2651.6,2651.5,5.15e-06]
[1739459804112,6.04290712,2651.6,2651.5,5.15e-06]
[1739459804513,11.97802,2651.6,2651.5,5.15e-06]
[1739459804818,12.04290605,2651.6,2651.5,5.15e-06]
[1739459805119,0.75422,2651.6,2651.5,5.15e-06]
[1739459805614,6.81912068,2651.6,2651.5,5.15e-06]
[1739459806020,0.81912068,2651.6,2651.5,5.15e-06]
[1739459806416,0.75422,2651.6,2651.5,5.15e-06]
[1739459806812,0.75413,2651.9,2651.5,0.75425515]
[1739459807017,0.75969274,2652.0,2651.7,3.2078]
[1739459807217,0.00558274,2652.0,2651.7,3.2078]
[1739459807413,0.75416,2651.8,2651.7,3.2078]
[1739459807716,0.00558274,2652.0,2651.7,3.2078]
[1739459808416,1.88456,2653.0,2651.8,0.5796]
[1739459808615,4.3365,2653.1,2652.3,3.2078]
[1739459808616,2.05,2652.8,2652.3,3.2078]
[1739459808813,3.2078,2653.4,2652.7,0.75389]
[1739459809118,0.75376,2653.3,2652.9,3.2078]
[1739459809316,3.2078,2653.1,2652.2,3.50562502]
[1739459809522,3.2078,2652.7,2651.6,7.78802519]
[1739459809711,4.58022519,2653.4,2651.6,3.2078]
[1739459809712,3.2078,2652.4,2651.6,3.2078]
[1739459809918,7.25612,2652.9,2652.0,0.00565515]
[1739459810222,3.2078,2652.6,2652.0,0.00565515]
[1739459810421,0.75408,2652.1,2652.0,0.00565515]
[1739459812621,0.81901679,2652.1,2652.0,0.00565515]
[1739459812820,0.75419,2651.7,2651.6,3.2078]
[1739459813117,5.3618,2651.8,2651.3,3.2078]
[1739459813422,0.75426,2651.5,2651.3,3.2078]
[1739459813818,0.00565515,2651.7,2651.3,3.2078]
[1739459814216,0.75426,2651.5,2651.3,3.2078]
[1739459814416,0.00565515,2651.7,2651.3,3.2078]
[1739459814617,0.75425,2651.5,2651.3,3.2078]
[1739459814819,0.00565515,2651.7,2651.3,3.2078]
[1739459814820,0.75424,2651.6,2651.3,3.2078]
[1739459815321,0.00565515,2651.7,2651.3,3.2078]
[1739459815620,0.5584,2652.4,2651.6,3.2078]
[1739459815922,0.5584,2652.4,2651.9,3.2078]
[1739459816418,0.75407,2652.2,2651.9,3.2078]
[1739459816619,0.5584,2652.4,2651.9,3.2078]
[1739459816820,0.75406,2652.2,2651.9,3.2078]
[1739459817022,0.00565,2652.3,2651.3,0.5696]
[1739459817023,3.21345,2652.3,2651.3,3.2078]
[1739459817524,3.2078,2652.0,2651.3,3.2078]
[1739459817721,0.75419,2651.7,2651.6,3.2078]
[1739459818122,0.75428,2651.4,2651.3,3.2078]
[1739459818321,0.75433,2651.2,2651.1,0.00565515]
[1739459821028,0.75433,2651.2,2651.1,5.15e-06]
[1739459822534,3.7799,2651.6,2651.1,5.15e-06]
[1739459822725,3.7799,2651.6,2651.1,3.20780515]
[1739459822919,0.75431,2651.3,2651.1,3.20780515]
[1739459823127,3.21345,2652.3,2651.1,3.20780515]
[1739459823326,0.00565,2652.3,2652.0,3.2078]
[1739459823527,0.00565,2652.3,2651.7,3.2078]
[1739459823733,3.2078,2651.8,2650.7,3.2078]
[1739459824029,3.2078,2650.9,2650.3,3.2078]
[1739459824631,0.75451,2650.6,2650.3,3.2078]
[1739459824834,3.2078,2650.9,2650.3,3.2078]
[1739459825022,0.75453,2650.6,2650.3,3.2078]
[1739459825225,0.00565515,2650.7,2650.3,3.2078]
[1739459825433,0.75456,2650.4,2650.3,3.2078]
[1739459825636,2.13465515,2650.7,2650.4,0.75455]
[1739459825834,2.13465515,2650.7,2650.3,3.2078]
[1739459826024,2.13465515,2650.7,2650.5,0.75452]
[1739459826232,0.00565515,2650.7,2650.6,3.9623]
[1739459826431,1.152,2651.7,2650.6,3.9623]
[1739459826633,3.2078,2652.2,2651.4,3.2078]
[1739459826933,3.2078,2652.2,2651.7,3.2078]
[1739459827137,3.2078,2652.2,2651.9,0.75412]
[1739459827337,1.0945,2652.9,2652.0,3.2078]
[1739459827533,0.75383,2653.0,2652.3,3.2078]
[1739459827735,2.128,2653.1,2652.3,3.2078]
[1739459828031,0.00565,2652.7,2652.6,0.75394]
[1739459828236,0.00565,2652.7,2652.3,3.2078]
[1739459828740,0.00565,2652.7,2652.6,3.2078]
[1739459829135,0.00565,2652.7,2652.6,3.96174]
[1739459829438,0.75391,2652.7,2652.6,3.2078]
[1739459829635,0.75396,2652.6,2652.2,3.2078]
[1739459829832,3.2078,2652.9,2652.2,3.2078]
[1739459830536,0.7539,2652.8,2652.2,3.96184]
[1739459830841,3.2078,2652.9,2652.2,3.2078]
[1739459831044,3.96167,2652.9,2652.3,0.75401]
[1739459831342,3.2078,2653.3,2652.5,3.2078]
[1739459831535,0.75388,2652.8,2652.2,3.96184]
[1739459831743,3.2078,2653.1,2652.5,3.2078]
[1739459831936,5.3348,2653.5,2652.8,3.2078]
[1739459832139,0.75373,2653.4,2652.8,3.96167]
[1739459832438,3.2078,2653.9,2653.1,3.2078]
[1739459832745,3.2078,2653.9,2653.2,3.2078]
[1739459832935,0.06488828,2653.8,2653.2,3.21345515]
[1739459833240,3.2078,2654.3,2653.5,3.2078]
[1739459833433,0.0648799,2654.2,2653.5,3.2078]
[1739459833639,0.75362,2653.8,2653.5,3.2078]
[1739459833842,0.75359,2653.9,2653.5,3.2078]
[1739459834038,0.75363,2653.7,2653.5,3.2078]
[1739459834241,3.2078,2653.7,2653.2,0.00565515]
[1739459834540,0.75374,2653.3,2653.2,0.00565515]
[1739459834837,3.2078,2653.7,2653.2,0.00565515]
[1739459835041,5.3228,2653.7,2653.2,0.00565515]
[1739459835238,0.75374,2653.3,2653.2,0.00565515]
[1739459836431,1.88446,2653.2,2652.1,3.2078]
[1739459836630,3.2078,2653.0,2651.5,5.72092519]
[1739459836833,3.2078,2652.3,2651.7,3.2078]
[1739459837039,0.75395,2652.6,2652.0,3.2078]
[1739459837233,2.125,2652.7,2652.3,3.2078]
[1739459837434,2.125,2652.7,2651.8,3.2078]
[1739459837636,2.125,2652.7,2652.2,0.00565515]
[1739459837844,0.75404,2652.3,2652.2,0.00565515]
[1739459839045,10.58022519,2652.3,2651.3,0.5982]
[1739459839239,3.2078,2651.7,2651.0,3.2078]
[1739459839435,0.75426,2651.5,2651.0,3.96218]
[1739459839642,1.1184,2652.4,2651.3,3.2078]
[1739459839935,0.75392,2652.7,2652.2,0.75405]
[1739459840132,0.75399,2652.5,2652.1,3.2078]
[1739459840337,0.00565515,2652.8,2652.2,0.00565515]
[1739459840836,3.2078,2652.7,2652.2,0.00565515]
[1739459841439,0.75394,2652.6,2652.2,0.00565515]
[1739459842246,3.2078,2652.7,2652.2,0.00565515]
[1739459842442,0.00565515,2652.8,2652.4,3.2078]
[1739459842939,0.00565515,2652.8,2652.4,3.96177]
[1739459843840,0.00565515,2652.8,2652.7,3.2078]
[1739459844044,0.00565515,2652.8,2652.7,3.96171]
[1739459844245,0.7537,2653.5,2653.1,0.75378]
[1739459844547,3.2078,2654.3,2653.1,3.2078]
[1739459844844,0.7537,2653.5,2653.1,3.96159]
[1739459845046,1.88379,2654.1,2653.1,3.96159]
[1739459845047,3.2078,2654.0,2653.1,3.2078]
[1739459845247,0.75369,2653.5,2653.1,3.2078]
[1739459845442,0.75372,2653.4,2653.1,3.2078]
[1739459845839,0.75377,2653.2,2653.1,3.2078]
[1739459846146,3.2078,2653.3,2652.5,3.2078]
[1739459846337,0.75389,2652.8,2652.5,3.2078]
[1739459846746,3.2078,2653.0,2652.2,3.21345515]
[1739459846942,0.5977,2653.1,2652.2,3.21345515]
[1739459847246,0.5977,2653.1,2652.5,3.2078]
[1739459847448,3.2078,2653.6,2652.5,3.2078]
[1739459847658,3.2078,2653.6,2652.9,3.2078]
[1739459847954,0.7537,2653.5,2652.9,3.2078]
[1739459848153,0.7537,2653.5,2653.1,0.75378]
[1739459848348,5.34945515,2653.8,2653.2,3.2078]
[1739459848654,2.14165515,2653.8,2653.2,3.2078]
[1739459848852,0.75367,2653.6,2653.2,3.2078]
[1739459849045,0.00565515,2653.8,2653.2,3.2078]
[1739459849851,0.00565515,2653.8,2653.3,0.75372]
[1739459850047,0.00565515,2653.8,2653.2,3.2078]
[1739459850457,0.75368,2653.5,2653.2,3.96156]
[1739459850650,0.7537,2653.5,2653.2,3.2078]
[1739459850954,0.75374,2653.3,2653.2,3.2078]
[1739459851255,0.75388,2652.8,2652.7,3.2078]
[1739459851457,0.75396,2652.6,2652.4,3.2078]
[1739459851752,0.75385,2652.9,2652.6,0.75393]
[1739459852055,0.75385,2653.0,2652.7,3.2078]
[1739459852258,0.75388,2652.8,2652.7,3.2078]
[1739459852443,1.1503,2653.1,2652.7,3.2078]
[1739459852859,1.1503,2653.1,2652.4,3.2078]
[1739459853059,0.75376,2653.3,2652.4,5.09278]
[1739459853261,0.75381,2653.1,2652.5,0.5584]
[1739459853464,3.2078,2653.4,2652.5,0.5584]
[1739459853759,2.12,2653.7,2652.9,3.2078]
[1739459853967,0.75365,2653.6,2653.2,0.75374]
[1739459854170,0.75365,2653.6,2653.2,3.96154]
[1739459854462,0.59275515,2653.8,2653.6,0.75364]
[1739459854664,0.59275515,2653.8,2653.5,3.2078]
[1739459854665,0.00565515,2653.8,2653.5,3.2078]
[1739459854862,0.75926515,2653.8,2653.5,3.2078]
[1739459855260,0.00565515,2653.8,2653.5,3.2078]
[1739459855464,0.75364,2653.7,2653.5,3.2078]
[1739459855767,0.00565515,2653.8,2653.5,3.2078]
[1739459855972,0.75365,2653.7,2653.5,3.2078]
[1739459856175,0.00565515,2653.8,2653.5,3.2078]
[1739459856366,0.00565515,2653.8,2653.5,3.96147]
[1739459856668,0.00565515,2653.8,2653.5,3.2078]
[1739459856871,0.00565515,2653.8,2653.7,0.75362]
[1739459857075,3.2078,2654.4,2653.5,13.78802519]
[1739459857370,0.75346,2654.3,2653.9,3.2078]
[1739459857569,3.2078,2654.4,2653.9,3.2078]
[1739459857772,3.96123,2654.4,2654.1,0.7535]
[1739459857973,3.2078,2654.4,2653.9,3.2078]
[1739459858470,0.75347,2654.3,2653.9,3.96700515]
[1739459858769,0.75352,2654.1,2653.9,3.21345515]
[1739459858975,2.46952,2654.7,2653.9,3.21345515]
[1739459859171,0.75348,2654.2,2653.9,3.96701515]
[1739459859468,0.75346,2654.3,2653.9,3.21345515]
[1739459859867,0.5861,2654.7,2653.9,3.21345515]
[1739459860174,3.2078,2654.5,2653.9,0.00565515]
[1739459860363,0.5846,2654.6,2654.1,3.2078]
[1739459860673,0.5861,2654.7,2654.1,3.2078]
[1739459860870,3.2078,2654.9,2654.1,3.2078]
[1739459861181,1.88314,2655.0,2654.1,3.2078]
[1739459861368,2.40415612,2655.1,2654.1,3.2078]
[1739459861868,3.2078,2654.9,2654.1,3.2078]
[1739459862069,3.2078,2654.9,2654.0,0.75353]
[1739459862070,0.75348,2654.2,2654.0,0.75353]
[1739459862373,0.75341,2654.5,2654.2,0.75347]
[1739459862572,0.7534,2654.6,2654.1,3.2078]
[1739459862775,0.7534,2654.5,2654.2,0.75346]
[1739459863181,3.2078,2654.9,2654.1,3.2078]
[1739459863472,0.75345,2654.4,2654.1,3.9613]
[1739459863669,5.09103,2654.9,2654.1,3.2078]